bitfinex-derivatives/quotes_SOLF0:USTF0_20250312
["timestamp","ask_amount","ask_price","bid_price","bid_amount"]
[1741817159906,8.00175989,125.87,125.84,0.05468412]
[1741817160105,0.05535989,125.87,125.84,0.05468412]
[1741817160501,0.05535989,125.87,125.84,8.00238412]
[1741817160705,0.05535989,125.87,125.84,0.05468412]
[1741817161304,7.9471,125.86,125.84,0.05468412]
[1741817161811,0.05535989,125.87,125.84,0.05468412]
[1741817162807,18.4365843,125.87,125.84,0.05468412]
[1741817163007,2.1649,125.86,125.79,31.44]
[1741817163202,4.2711,125.86,125.79,31.54]
[1741817163412,4.2711,125.86,125.8,7.9503]
[1741817163813,7.949,125.83,125.79,7.9508]
[1741817164015,18.38122441,125.85,125.79,31.54]
[1741817164212,0.06017329,125.82,125.8,0.05646269]
[1741817165413,0.06017329,125.82,125.81,7.9499]
[1741817165715,0.06017329,125.82,125.8,0.05646269]
[1741817165913,0.06017329,125.82,125.81,7.9499]
[1741817166314,0.06017329,125.82,125.8,0.05646269]
[1741817167019,7.9499,125.81,125.8,0.05646269]
[1741817167521,8.00977329,125.82,125.8,0.05646269]
[1741817167915,0.06017329,125.82,125.8,0.05646269]
[1741817168217,0.06017329,125.82,125.8,8.00666269]
[1741817168513,0.06017329,125.82,125.8,0.05646269]
[1741817169517,0.06017329,125.82,125.81,7.9499]
[1741817169916,0.06017329,125.82,125.8,8.00666269]
[1741817170519,0.06017329,125.82,125.81,7.9499]
[1741817170722,0.06017329,125.82,125.8,0.05646269]
[1741817171423,8.00977329,125.82,125.8,0.05646269]
[1741817172025,7.9499,125.81,125.8,0.05646269]
[1741817172622,7.9499,125.81,125.7,63.92555444]
[1741817172623,7.9499,125.81,125.76,31.5]
[1741817172926,18.38122441,125.83,125.76,31.5]
[1741817173123,18.38122441,125.83,125.76,39.4527]
[1741817173318,33.5252,125.82,125.76,7.9527]
[1741817173631,7.9509,125.8,125.76,7.9527]
[1741817173818,0.05308084,125.8,125.78,0.06044876]
[1741817174121,7.9518,125.79,125.78,0.06044876]
[1741817174924,0.05308084,125.8,125.78,0.06044876]
[1741817175127,8.00388084,125.8,125.78,0.06044876]
[1741817175832,0.05308084,125.8,125.78,0.06044876]
[1741817178525,8.00388084,125.8,125.78,0.06044876]
[1741817179125,7.9511,125.79,125.78,0.06044876]
[1741817179328,0.05308084,125.8,125.78,0.06044876]
[1741817180838,7.9511,125.79,125.78,0.06044876]
[1741817182044,4.16518084,125.8,125.78,0.06044876]
[1741817183640,4.16518084,125.8,125.78,8.01184876]
[1741817183840,4.16518084,125.8,125.78,0.06044876]
[1741817184141,4.16518084,125.8,125.78,8.01184876]
[1741817184343,4.16518084,125.8,125.78,0.06044876]
[1741817184542,2.05538084,125.8,125.78,0.06044876]
[1741817184743,0.05308084,125.8,125.78,0.06044876]
[1741817185141,16.41237225,125.9,125.79,288.40122441]
[1741817185337,16.41237225,125.9,125.84,18.38122441]
[1741817185541,16.41237225,125.9,125.84,31.98]
[1741817185542,18.38122441,125.9,125.84,31.98]
[1741817185738,7.9462,125.87,125.84,31.98]
[1741817186045,18.38122441,125.9,125.82,18.38122441]
[1741817186245,0.05789379,125.87,125.84,0.0535021]
[1741817186446,0.05789379,125.87,125.84,8.0013021]
[1741817187247,0.05789379,125.87,125.84,0.0535021]
[1741817189250,8.00409379,125.87,125.84,0.0535021]
[1741817189750,0.05789379,125.87,125.84,0.0535021]
[1741817190342,8.00419379,125.87,125.84,0.0535021]
[1741817190840,0.05789379,125.87,125.84,0.0535021]
[1741817191847,7.9473,125.85,125.84,0.0535021]
[1741817192246,18.38122441,125.86,125.79,270.38]
[1741817192447,2.0277,125.84,125.76,0.4064]
[1741817192648,2.0277,125.84,125.75,18.38122441]
[1741817192851,33.8877,125.84,125.77,31.86]
[1741817193150,52.26892441,125.84,125.77,31.86]
[1741817193453,52.26892441,125.84,125.79,0.05234318]
[1741817193454,7.9505,125.8,125.79,0.05234318]
[1741817194851,7.9503,125.81,125.79,0.05234318]
[1741817195245,0.054901,125.82,125.79,8.00344318]
[1741817195651,0.054901,125.82,125.79,0.05234318]
[1741817195847,104.83444124,125.91,125.81,18.38122441]
[1741817196051,18.38122441,125.89,125.79,208.38122441]
[1741817196243,7.9486,125.83,125.79,32.26]
[1741817196953,0.05371129,125.82,125.8,0.05340019]
[1741817200852,7.9499,125.81,125.8,0.05340019]
[1741817201854,7.951,125.8,125.76,40.1527]
[1741817202946,0.05956054,125.79,125.77,0.05221926]
[1741817203349,7.9518,125.78,125.77,0.05221926]
[1741817205660,8.01096054,125.79,125.77,0.05221926]
[1741817207060,0.05956054,125.79,125.77,0.05221926]
[1741817207754,0.05956054,125.79,125.77,8.00451926]
[1741817209263,0.05956054,125.79,125.71,18.38122441]
[1741817209558,18.38122441,125.79,125.72,32.04]
[1741817209958,7.9522,125.78,125.73,7.9544]
[1741817210354,0.05037698,125.77,125.74,0.05159988]
[1741817210962,0.05037698,125.77,125.74,8.00559988]
[1741817212357,8.00307698,125.77,125.74,8.00559988]
[1741817212662,0.05037698,125.77,125.74,8.00559988]
[1741817213757,8.00287698,125.77,125.74,0.05159988]
[1741817213956,0.05037698,125.77,125.74,0.05159988]
[1741817214260,0.05037698,125.77,125.75,7.9533]
[1741817214863,0.05037698,125.77,125.74,0.05159988]
[1741817215567,0.05037698,125.77,125.74,8.00539988]
[1741817215958,0.05037698,125.77,125.74,0.05159988]
[1741817216163,0.05037698,125.77,125.75,7.9536]
[1741817216757,0.05037698,125.77,125.74,0.05159988]
[1741817216964,0.05037698,125.77,125.75,7.9532]
[1741817218062,0.05037698,125.77,125.74,0.05159988]
[1741817218863,8.00317698,125.77,125.74,8.00549988]
[1741817219163,0.05037698,125.77,125.74,0.05159988]
[1741817220571,7.955,125.73,125.66,50.14122441]
[1741817220864,7.955,125.73,125.66,31.76]
[1741817221059,18.38122441,125.74,125.69,7.9572]
[1741817221368,20.56292441,125.76,125.66,50.14122441]
[1741817221559,20.56292441,125.76,125.7,0.02760755]
[1741817221763,0.06067481,125.72,125.7,0.02760755]
[1741817222369,7.9562,125.71,125.7,0.02760755]
[1741817222861,7.9583,125.68,125.64,190.0]
[1741817223067,7.9583,125.68,125.64,31.72]
[1741817223657,7.9577,125.69,125.65,7.9597]
[1741817223862,33.7562,125.71,125.64,50.10122441]
[1741817224071,0.05916409,125.68,125.64,50.10122441]
[1741817224365,0.05916409,125.68,125.65,7.9596]
[1741817224566,0.05916409,125.68,125.64,31.72]
[1741817224764,0.05916409,125.68,125.65,7.9596]
[1741817224967,0.05916409,125.68,125.64,31.72]
[1741817225471,0.05916409,125.68,125.66,7.9593]
[1741817226172,0.05916409,125.68,125.65,7.9598]
[1741817226363,0.05916409,125.68,125.62,31.7]
[1741817226770,0.05916409,125.68,125.65,7.9599]
[1741817227465,0.05916409,125.68,125.63,31.66]
[1741817227668,18.4403885,125.68,125.61,270.26]
[1741817227868,7.9597,125.66,125.62,7.9613]
[1741817228271,0.05722134,125.65,125.6,32.1829]
[1741817228467,0.05722134,125.65,125.63,7.961]
[1741817229172,0.05722134,125.65,125.64,7.9606]
[1741817231974,4.0897,125.71,125.63,31.68]
[1741817232275,4.0897,125.71,125.68,7.9578]
[1741817232474,18.38122441,125.7,125.63,31.68]
[1741817232680,18.38122441,125.7,125.64,7.9603]
[1741817232866,18.38122441,125.7,125.63,31.68]
[1741817233066,18.38122441,125.7,125.65,0.05722134]
[1741817233370,18.43692642,125.68,125.65,0.05722134]
[1741817233573,7.9593,125.67,125.6,50.56412441]
[1741817233772,7.9593,125.67,125.63,7.9608]
[1741817234671,20.50282441,125.68,125.63,7.9608]
[1741817234976,0.05909226,125.66,125.6,18.38122441]
[1741817235172,0.05909226,125.66,125.64,7.9603]
[1741817235472,0.05909226,125.66,125.6,50.00122441]
[1741817235673,18.44031667,125.66,125.57,0.1165]
[1741817235866,18.38122441,125.64,125.55,240.08122441]
[1741817236070,8.01823626,125.63,125.55,240.08122441]
[1741817236274,7.9616,125.63,125.59,7.9637]
[1741817236575,0.05989231,125.6,125.59,7.9637]
[1741817238175,0.05989231,125.6,125.59,39.6437]
[1741817238568,31.68,125.66,125.63,7.9608]
[1741817238768,31.68,125.66,125.59,50.06122441]
[1741817239176,7.9607,125.64,125.61,7.9622]
[1741817239681,0.06037993,125.64,125.61,0.0520213]
[1741817239875,0.06037993,125.64,125.62,7.9619]
[1741817241179,0.06037993,125.64,125.63,7.9613]
[1741817245481,2.0921,125.69,125.67,7.9582]
[1741817246584,2.14303706,125.69,125.67,8.01202315]
[1741817247078,2.14303706,125.69,125.68,7.9581]
[1741817247581,2.14303706,125.69,125.67,8.01222315]
[1741817247781,7.9581,125.68,125.67,0.05382315]
[1741817250076,0.05093706,125.69,125.68,7.9581]
[1741817250384,0.05093706,125.69,125.67,0.05382315]
[1741817250580,10.83344395,125.8,125.68,31.68]
[1741817250782,18.38122441,125.76,125.68,31.68]
[1741817250985,7.9566,125.71,125.66,7.9587]
[1741817251484,18.38122441,125.72,125.65,31.68]
[1741817251688,0.05509458,125.7,125.67,8.00913316]
[1741817252180,0.05509458,125.7,125.67,0.05073316]
[1741817252883,0.05509458,125.7,125.67,8.00943316]
[1741817253388,0.05509458,125.7,125.68,7.958]
[1741817254387,0.05509458,125.7,125.67,8.00923316]
[1741817255481,0.05509458,125.7,125.67,0.05073316]
[1741817256079,0.05509458,125.7,125.67,8.00903316]
[1741817256278,0.05509458,125.7,125.67,0.05073316]
[1741817256685,7.9534,125.76,125.69,18.38122441]
[1741817256983,6.193,125.78,125.69,18.38122441]
[1741817257180,7.9536,125.76,125.71,7.9558]
[1741817257482,6.193,125.78,125.71,31.58]
[1741817257881,0.0507939,125.76,125.73,0.06096102]
[1741817258081,0.0507939,125.76,125.73,31.62096102]
[1741817258279,0.0507939,125.76,125.75,7.9533]
[1741817258878,0.0507939,125.76,125.74,7.954]
[1741817259085,0.0507939,125.76,125.73,31.62096102]
[1741817259681,0.0507939,125.76,125.74,7.9543]
[1741817260283,0.0507939,125.76,125.75,7.9537]
[1741817260482,0.0507939,125.76,125.73,31.62096102]
[1741817262183,8.0042939,125.76,125.73,31.62096102]
[1741817262383,8.0042939,125.76,125.73,0.06096102]
[1741817262884,8.0042939,125.76,125.73,8.01586102]
[1741817265287,8.0042939,125.76,125.73,0.06096102]
[1741817265585,0.0507939,125.76,125.73,0.06096102]
[1741817266184,8.0040939,125.76,125.73,8.01566102]
[1741817266689,8.0040939,125.76,125.73,0.06096102]
[1741817266883,0.0507939,125.76,125.73,0.06096102]
[1741817267490,7.954,125.75,125.73,0.06096102]
[1741817267684,0.0507939,125.76,125.73,0.06096102]
[1741817268091,2.0642939,125.76,125.73,0.06096102]
[1741817268784,49.72122441,125.75,125.63,18.38122441]
[1741817268987,18.38122441,125.72,125.64,31.38]
[1741817269189,18.38122441,125.72,125.66,7.959]
[1741817269391,18.38122441,125.72,125.64,31.38]
[1741817269685,2.0728,125.71,125.64,31.5]
[1741817269885,8.01457883,125.69,125.67,0.05694558]
[1741817270487,0.05677883,125.69,125.67,0.05694558]
[1741817271789,0.05677883,125.69,125.67,8.01544558]
[1741817271990,0.05677883,125.69,125.67,0.05694558]
[1741817272186,0.05677883,125.69,125.67,31.49694558]
[1741817272491,0.05677883,125.69,125.68,7.9581]
[1741817274793,7.9551,125.73,125.7,7.9563]
[1741817275183,7.9562,125.72,125.67,49.82122441]
[1741817275390,7.9562,125.72,125.69,7.9573]
[1741817275690,20.55522441,125.74,125.67,31.44]
[1741817275890,0.05741191,125.72,125.7,7.9565]
[1741817276288,0.05741191,125.72,125.69,0.05155684]
[1741817276491,0.05741191,125.72,125.7,7.9565]
[1741817277087,0.05741191,125.72,125.71,7.9562]
[1741817277586,0.05741191,125.72,125.7,39.3165]
[1741817278190,8.01301191,125.72,125.7,31.36]
[1741817278392,18.43863632,125.72,125.69,0.05155684]
[1741817278791,4.3342,125.71,125.69,0.05155684]
[1741817278988,7.9568,125.7,125.69,0.05155684]
[1741817280689,18.38122441,125.7,125.64,31.26]
[1741817281195,7.9579,125.69,125.64,31.26]
[1741817281898,0.06038863,125.68,125.65,0.05126453]
[1741817283094,7.959,125.67,125.65,0.05126453]
[1741817283297,0.06038863,125.68,125.65,0.05126453]
[1741817283894,0.06038863,125.68,125.66,7.9589]
[1741817284598,0.06038863,125.68,125.65,0.05126453]
[1741817284792,0.06038863,125.68,125.67,7.9587]
[1741817286389,0.06038863,125.68,125.66,7.9591]
[1741817286595,0.06038863,125.68,125.65,0.05126453]
[1741817286796,8.01878863,125.68,125.65,0.05126453]
[1741817286995,0.06038863,125.68,125.65,0.05126453]
[1741817288195,0.06038863,125.68,125.66,7.9594]
[1741817289101,7.9587,125.67,125.65,0.05126453]
[1741817290199,0.06038863,125.68,125.65,0.05126453]
[1741817290399,8.01888863,125.68,125.65,0.05126453]
[1741817290901,7.9593,125.67,125.65,0.05126453]
[1741817291103,18.44161304,125.68,125.65,0.05126453]
[1741817291502,7.9592,125.67,125.65,0.05126453]
[1741817292002,18.44161304,125.68,125.65,0.05126453]
[1741817292398,18.38122441,125.66,125.61,190.0]
[1741817292600,7.961,125.64,125.6,31.06]
[1741817292993,20.53062441,125.66,125.61,7.9622]
[1741817293197,20.53062441,125.66,125.6,31.06]
[1741817293400,0.05667024,125.64,125.62,0.05189779]
[1741817293999,8.01777024,125.64,125.62,0.05189779]
[1741817294803,0.05667024,125.64,125.62,0.05189779]
[1741817297906,0.05667024,125.64,125.63,7.9613]
[1741817300307,8.01737024,125.64,125.62,8.01349779]
[1741817300505,0.05667024,125.64,125.62,0.05189779]
[1741817300807,49.35789465,125.64,125.58,30.94]
[1741817301010,7.9625,125.62,125.58,38.904]
[1741817301210,49.30122441,125.64,125.58,38.904]
[1741817301705,7.9628,125.61,125.58,38.904]
[1741817301901,7.9628,125.61,125.6,0.05869544]
[1741817302103,0.05278267,125.62,125.6,0.05869544]
[1741817302303,8.01498267,125.62,125.6,0.05869544]
[1741817302508,0.05278267,125.62,125.6,0.05869544]
[1741817303012,0.05278267,125.62,125.61,7.9625]
[1741817313819,8.267e-05,125.62,125.61,7.9625]
[1741817315526,2.0486,125.69,125.68,7.9581]
[1741817315718,32.6333,125.71,125.64,30.62]
[1741817316115,2.0133,125.71,125.64,30.62]
[1741817316316,9.9698,125.71,125.64,30.62]
[1741817316516,9.9698,125.71,125.66,0.0528641]
[1741817316517,0.0597199,125.69,125.66,0.0528641]
[1741817318322,0.0597199,125.69,125.68,7.9581]
[1741817318930,132.75064608,125.79,125.74,7.9543]
[1741817319225,154.15732655,125.79,125.74,7.9543]
[1741817319727,119.16788346,125.78,125.74,7.9543]
[1741817320024,18.78584395,125.77,125.74,7.9543]
[1741817320227,0.05407727,125.77,125.74,0.05775513]
[1741817320825,0.05407727,125.77,125.75,7.9532]
[1741817321025,0.05407727,125.77,125.74,0.05775513]
[1741817323526,8.00677727,125.77,125.74,0.05775513]
[1741817324628,8.00677727,125.77,125.74,8.01195513]
[1741817325926,7.9535,125.76,125.74,0.05775513]
[1741817326131,0.05407727,125.77,125.74,0.05775513]
[1741817326431,18.43530168,125.77,125.7,30.7]
[1741817326625,7.9544,125.74,125.7,38.6563]
[1741817326832,18.38122441,125.77,125.7,30.7]
[1741817327137,7.9542,125.75,125.71,7.9559]
[1741817327338,18.38122441,125.77,125.71,7.9559]
[1741817327644,0.05380621,125.74,125.72,0.05504585]
[1741817327944,0.05380621,125.74,125.68,30.76]
[1741817328240,7.9559,125.72,125.68,38.7177]
[1741817328442,4.155,125.74,125.68,38.7177]
[1741817328642,18.38122441,125.73,125.61,234.02109713]
[1741817328943,18.38122441,125.73,125.67,7.9585]
[1741817329139,0.05532896,125.7,125.68,0.06056558]
[1741817330946,0.05532896,125.7,125.69,7.9575]
[1741817331539,2.0894,125.74,125.69,49.08122441]
[1741817331941,2.0894,125.74,125.72,7.9552]
[1741817332341,2.0894,125.74,125.69,49.08122441]
[1741817332546,2.0894,125.74,125.73,7.9549]
[1741817332747,49.12122441,125.79,125.72,30.74]
[1741817333044,0.05715447,125.75,125.74,7.9539]
[1741817333344,2.0409,125.78,125.74,0.05560798]
[1741817333546,0.05557761,125.76,125.75,7.9537]
[1741817333745,0.05557761,125.76,125.75,38.6737]
[1741817337740,2.1718,125.8,125.78,7.9514]
[1741817338044,238.8,125.83,125.75,49.10122441]
[1741817338239,30.7,125.84,125.78,7.9515]
[1741817338446,30.7,125.84,125.76,30.7]
[1741817338747,49.06122441,125.85,125.76,30.7]
[1741817338947,0.05586027,125.81,125.79,0.05827635]
[1741817339444,0.05586027,125.81,125.79,8.00897635]
[1741817339644,0.05586027,125.81,125.79,0.05827635]
[1741817340040,0.05586027,125.81,125.79,8.00907635]
[1741817340238,0.05586027,125.81,125.79,0.05827635]
[1741817340639,0.05586027,125.81,125.79,38.66917635]
[1741817341350,0.05586027,125.81,125.8,7.9505]
[1741817341550,0.05586027,125.81,125.79,30.71827635]
[1741817342947,0.05586027,125.81,125.79,38.66907635]
[1741817343248,0.05586027,125.81,125.79,30.71827635]
[1741817344150,0.05586027,125.81,125.8,7.9505]
[1741817344648,6.3179,125.86,125.83,7.9482]
[1741817344848,6.3179,125.86,125.82,30.6]
[1741817345048,4.2596,125.86,125.82,30.6]
[1741817345248,20.42482441,125.91,125.82,30.6]
[1741817345547,24.64682441,125.91,125.83,18.38122441]
[1741817345848,0.05328208,125.88,125.86,0.05509462]
[1741817346143,24.64682441,125.95,125.87,49.02122441]
[1741817346350,6.2656,125.95,125.89,18.38122441]
[1741817346542,4.1787,125.95,125.9,30.68]
[1741817346748,12.96854395,125.95,125.9,30.68]
[1741817347248,0.05756604,125.94,125.91,0.06040197]
[1741817347447,0.05756604,125.94,125.91,8.00360197]
[1741817347644,0.05756604,125.94,125.91,0.06040197]
[1741817349352,7.9423,125.93,125.91,0.06040197]
[1741817349941,0.05756604,125.94,125.91,0.06040197]
[1741817350147,0.05756604,125.94,125.91,8.00370197]
[1741817352950,0.05756604,125.94,125.91,38.62370197]
[1741817353254,0.05756604,125.94,125.91,0.06040197]
[1741817353853,0.05756604,125.94,125.88,38.5651]
[1741817354148,51.13632441,125.95,125.87,30.6]
[1741817354549,7.9439,125.91,125.87,38.5455]
[1741817354752,51.13632441,125.95,125.87,38.5455]
[1741817355053,0.05554569,125.9,125.88,0.05777073]
[1741817355248,2.0818,125.92,125.88,0.05777073]
[1741817355447,0.05994199,125.9,125.85,30.62]
[1741817355653,0.05994199,125.9,125.83,49.00122441]
[1741817356046,7.9458,125.88,125.83,49.00122441]
[1741817356450,7.9458,125.88,125.85,7.9473]
[1741817356652,0.0540791,125.87,125.85,7.9473]
[1741817357145,0.0540791,125.87,125.84,0.06012028]
[1741817357346,0.0540791,125.87,125.86,7.9467]
[1741817357547,0.0540791,125.87,125.84,0.06012028]
[1741817357751,0.0540791,125.87,125.86,7.9467]
[1741817358260,0.0540791,125.87,125.84,0.06012028]
[1741817358557,0.0540791,125.87,125.85,7.9471]
[1741817361261,0.0540791,125.87,125.86,7.9467]
[1741817363160,0.0540791,125.87,125.86,38.4267]
[1741817363362,2.0818,125.92,125.86,30.48]
[1741817363662,18.38122441,125.95,125.86,30.48]
[1741817363663,18.38122441,125.95,125.86,48.86122441]
[1741817363863,7.9436,125.91,125.86,48.86122441]
[1741817364163,18.38122441,125.91,125.86,30.48]
[1741817364364,12.0734,125.9,125.86,30.48]
[1741817364560,4.18121424,125.9,125.87,8.00293775]
[1741817364861,7.9449,125.89,125.87,0.05713775]
[1741817365363,4.18121424,125.9,125.87,0.05713775]
[1741817365760,4.18121424,125.9,125.87,8.00313775]
[1741817365956,4.18121424,125.9,125.87,0.05713775]
[1741817366861,2.16571424,125.9,125.87,30.69713775]
[1741817367057,0.05231424,125.9,125.87,30.69713775]
[1741817367469,0.05231424,125.9,125.89,7.9448]
[1741817371063,0.05231424,125.9,125.88,7.945]
[1741817373564,0.05231424,125.9,125.87,38.64293775]
[1741817374268,0.05231424,125.9,125.88,7.9454]
[1741817374464,0.05231424,125.9,125.87,30.69713775]
[1741817374666,0.05231424,125.9,125.89,7.9448]
[1741817375369,0.05231424,125.9,125.87,30.69713775]
[1741817376068,0.05231424,125.9,125.88,7.9451]
[1741817377569,0.05231424,125.9,125.87,0.05713775]
[1741817377769,7.9455,125.88,125.87,0.05713775]
[1741817379562,28.41482441,125.89,125.87,0.05713775]
[1741817379763,0.05231424,125.9,125.87,0.05713775]
[1741817380169,7.99661424,125.9,125.87,8.00283775]
[1741817380374,0.05231424,125.9,125.87,0.05713775]
[1741817381574,7.99681424,125.9,125.87,8.00283775]
[1741817382469,7.99681424,125.9,125.88,7.9454]
[1741817382768,7.99681424,125.9,125.87,0.05713775]
[1741817383173,7.99681424,125.9,125.87,8.00293775]
[1741817383573,0.05231424,125.9,125.88,7.9452]
[1741817384472,7.99681424,125.9,125.87,0.05713775]
[1741817385574,7.99681424,125.9,125.87,8.00293775]
[1741817385975,0.05231424,125.9,125.87,0.05713775]
[1741817386373,7.9448,125.89,125.87,0.05713775]
[1741817386574,18.38122441,125.89,125.81,30.58]
[1741817387382,18.38122441,125.89,125.82,7.9489]
[1741817387685,7.9476,125.85,125.84,0.05280241]
[1741817388180,7.9468,125.86,125.84,0.05280241]
[1741817388680,7.9473,125.85,125.84,0.05280241]
[1741817388872,18.44251481,125.87,125.8,30.58]
[1741817389079,2.0488,125.86,125.8,30.58]
[1741817389281,2.0488,125.86,125.8,48.96122441]
[1741817389887,2.0488,125.86,125.83,7.948]
[1741817390177,0.05018082,125.84,125.83,30.58]
[1741817390379,0.05018082,125.84,125.83,38.5286]
[1741817391679,0.05018082,125.84,125.82,8.00197199]
[1741817392177,0.05018082,125.84,125.82,0.05307199]
[1741817392382,0.05018082,125.84,125.83,7.9486]
[1741817403096,8.082e-05,125.84,125.83,7.9486]
[1741817404795,6.3309,125.92,125.83,7.94]
[1741817404992,6.3309,125.92,125.85,18.38122441]
[1741817405785,6.3309,125.92,125.9,7.9438]
[1741817406194,6.3841622,125.92,125.9,7.99765727]
[1741817407696,14.3270622,125.92,125.9,7.99765727]
[1741817407995,14.3270622,125.92,125.9,0.05385727]
[1741817409390,6.3841622,125.92,125.91,7.9436]
[1741817410487,14.3272622,125.92,125.9,0.05385727]
[1741817410689,6.3841622,125.92,125.9,0.05385727]
[1741817411389,4.3584622,125.92,125.9,0.05385727]
[1741817411595,0.0532622,125.92,125.9,7.99775727]
[1741817411792,0.0532622,125.92,125.9,0.05385727]
[1741817412385,0.0532622,125.92,125.91,7.9436]
[1741817413296,0.0532622,125.92,125.91,38.4236]
[1741817413686,0.0532622,125.92,125.9,7.99775727]
[1741817414087,7.9436,125.91,125.9,0.05385727]
[1741817414497,0.0532622,125.92,125.86,7.9465]
[1741817414700,18.38122441,125.93,125.86,7.9465]
[1741817414899,18.38122441,125.93,125.84,38.4274]
[1741817414900,18.38122441,125.91,125.84,38.4274]
[1741817415095,2.0608,125.9,125.84,7.9474]
[1741817415497,7.9459,125.88,125.84,7.9474]
[1741817415700,8.00117512,125.88,125.86,0.05137235]
[1741817415900,0.05527512,125.88,125.86,0.05137235]
[1741817416201,7.9461,125.87,125.82,30.48]
[1741817417190,0.05527512,125.88,125.85,7.9468]
[1741817418304,8.00077512,125.88,125.85,7.9468]
[1741817418501,0.05527512,125.88,125.83,0.05263693]
[1741817419002,0.05527512,125.88,125.83,8.00093693]
[1741817419303,7.9464,125.87,125.83,0.05263693]
[1741817419509,0.05527512,125.88,125.84,7.9475]
[1741817419710,0.05527512,125.88,125.83,0.05263693]
[1741817420009,0.05527512,125.88,125.83,8.00093693]
[1741817420600,7.9467,125.86,125.83,8.00093693]
[1741817421009,7.9467,125.86,125.83,0.05263693]
[1741817421307,7.9468,125.86,125.83,8.00123693]
[1741817422511,2.13707512,125.88,125.83,0.05263693]
[1741817423510,7.9464,125.87,125.83,8.00093693]
[1741817424112,2.13707512,125.88,125.83,0.05263693]
[1741817425501,2.13707512,125.88,125.84,7.9475]
[1741817425502,7.9464,125.87,125.84,7.9475]
[1741817425908,2.13707512,125.88,125.83,0.05263693]
[1741817426213,7.9468,125.86,125.83,8.00093693]
[1741817426413,2.13707512,125.88,125.83,0.05263693]
[1741817426615,7.9465,125.87,125.84,7.9479]
[1741817427411,7.9467,125.86,125.83,8.00073693]
[1741817427611,7.9467,125.86,125.83,0.05263693]
[1741817428122,7.9467,125.86,125.83,8.00093693]
[1741817430119,7.947,125.86,125.83,8.00093693]
[1741817430414,2.13707512,125.88,125.83,0.05263693]
[1741817430820,10.08277512,125.88,125.83,0.05263693]
[1741817431021,2.13707512,125.88,125.86,7.9462]
[1741817431215,2.13707512,125.88,125.84,30.48]
[1741817431411,2.13707512,125.88,125.86,0.05757611]
[1741817431617,0.05527512,125.88,125.86,0.05757611]
[1741817431819,0.05527512,125.88,125.87,7.9461]
[1741817432022,0.05527512,125.88,125.86,0.05757611]
[1741817434926,8.00107512,125.88,125.86,0.05757611]
[1741817436419,11.78517926,125.87,125.81,50.21467926]
[1741817437524,7.99981674,125.85,125.81,50.21467926]
[1741817438227,7.99981674,125.85,125.81,38.4295]
[1741817438422,7.9482,125.84,125.81,30.48]
[1741817438727,7.9482,125.84,125.81,38.4298]
[1741817438922,7.9482,125.84,125.81,30.48]
[1741817439622,0.05211674,125.85,125.79,18.42090802]
[1741817439826,20.47020802,125.84,125.78,30.48]
[1741817440019,20.47020802,125.84,125.76,238.4]
[1741817440020,18.42090802,125.82,125.73,62.67050515]
[1741817440218,7.9515,125.79,125.75,7.9533]
[1741817440418,18.42090802,125.82,125.74,30.48]
[1741817440717,0.05917341,125.78,125.74,30.48]
[1741817440917,0.05917341,125.78,125.75,7.9535]
[1741817441223,0.05917341,125.78,125.74,30.48]
[1741817441622,0.05917341,125.78,125.76,7.9526]
[1741817441822,0.05917341,125.78,125.75,30.48]
[1741817442529,0.05917341,125.78,125.77,7.9524]
[1741817444430,2.1438,125.83,125.8,7.9501]
[1741817445132,2.1438,125.83,125.78,30.48]
[1741817445329,7.9493,125.82,125.78,30.48]
[1741817445531,7.9493,125.82,125.79,0.0603736]
[1741817445831,0.05346576,125.81,125.8,7.9505]
[1741817446922,0.05346576,125.81,125.79,0.0603736]
[1741817447533,0.05346576,125.81,125.79,8.0114736]
[1741817448635,0.05346576,125.81,125.8,7.9505]
[1741817448829,0.05346576,125.81,125.79,0.0603736]
[1741817449029,8.00336576,125.81,125.79,0.0603736]
[1741817450127,0.05346576,125.81,125.79,0.0603736]
[1741817450335,0.05346576,125.81,125.74,30.48]
[1741817450530,48.90090802,125.82,125.74,30.48]
[1741817450827,2.1333,125.81,125.74,30.48]
[1741817451033,7.9508,125.8,125.77,7.9523]
[1741817451433,8.0033967,125.8,125.77,7.9523]
[1741817452330,7.9512,125.79,125.77,7.9523]
[1741817452534,7.9512,125.79,125.76,7.9527]
[1741817453034,7.9518,125.78,125.76,7.9527]